Workbook

Sheet 1
A1: Школа | B1: МБОУ "СОШ №9 г.Азнакаево" | E1: Отд./корп | H1: День | I1: 2024-06-19
A3: Прием пищи | B3: Раздел | C3: № рец. | D3: Блюдо | E3: Выход, г | F3: Калорийность | G3: Белки | H3: Жиры | I3: Углеводы
A4: Завтрак | D4: Бутерброд с сыром,с маслом | E4: 30/15/10 | F4: 196.10 | G4: 6.28 | H4: 12.11 | I4: 15.55
D5: Каша манная молочная с маслом сливочным | E5: 150/5 | F5: 130.10 | G5: 3.56 | H5: 2.23 | I5: 24.26
D6: Яйцо отварное | E6: 40 | F6: 62.80 | G6: 5.08 | H6: 4.60 | I6: 0.28
D7: Какао с молоком | E7: 200 | F7: 78.60 | G7: 4.08 | H7: 3.81 | I7: 7.60
D8: Фрукты свежие (Яблоки) | E8: 120 | F8: 56.40 | G8: 0.48 | H8: 0.48 | I8: 11.76
D9: Батон высший сорт | E9: 30 | F9: 78.60 | G9: 2.25 | H9: 0.87 | I9: 15.42
D10: Итого: | E10: 600 | F10: =SUM(F4:F9) -> 602.60 | G10: =SUM(G4:G9) -> 21.72 | H10: =SUM(H4:H9) -> 24.10 | I10: 74.87
A12: Завтрак 2 | D12: Нектар плодовый (разливной) | E12: 180 | F12: 76.32 | G12: 0.90 | H12: 0.00 | I12: 18.18
D13: Итого: | E13: 180 | F13: =SUM(F12:F12) -> 76.32 | G13: 0.90 | H13: 0.00 | I13: 18.18
D14: Итого за завтрак: | E14: =E10+E13 -> 780 | F14: =F10+F13 -> 678.92 | G14: =G10+G13 -> 22.62 | H14: =H10+H13 -> 24.10 | I14: 93.05
A16: Обед | D16: Салат из свежих овощей | E16: 60 | F16: 44.34 | G16: 0.66 | H16: 3.63 | I16: 2.27
D17: Рассольник Домашний с куриными фрикадельками,со сметаной | E17: 200/11/10 | F17: 180.46 | G17: 3.93 | H17: 7.93 | I17: 14.39
D18: Котлеты "Аппетитные" | E18: 90 | F18: 128.35 | G18: 8.71 | H18: 11.14 | I18: 5.71
D19: Макаронные изделия отварные с маслом сливочным | E19: 150/3 | F19: 176.06 | G19: 5.68 | H19: 2.84 | I19: 31.96
D20: Компот из изюма | E20: 200 | F20: 74.2 | G20: 0.346 | H20: 0.08 | I20: 17.874
D21: Хлеб ржаной | E21: 50 | F21: 99.00 | G21: 3.30 | H21: 0.60 | I21: 19.80
D22: Хлеб пшеничный | E22: 40 | F22: 94.00 | G22: 3.04 | H22: 0.32 | I22: 19.68
D23: Итого: | E23: 814 | F23: =SUM(F16:F22) -> 796.41 | G23: =SUM(G16:G22) -> 25.66 | H23: =SUM(H16:H22) -> 26.53 | I23: =SUM(I16:I22) -> 111.68
D24: Вода питьевая ПЭТ | E24: 500 | F24: 0.00 | G24: 0.00 | H24: 0.00 | I24: 0.00
D25: ВСЕГО: | E25: =E10+E13+E23+E24 -> 2094 | F25: =F10+F13+F23+F24 -> 1475.33 | G25: =G10+G13+G23+G24 -> 48.28 | H25: =H10+H13+H23+H24 -> 50.63 | I25: 204.73
